[Event "GrandPrix_29.05"]
[Site "Chess.com"]
[Date "2020.05.29"]
[Round "5"]
[White "Korchmar_Vasiliy"]
[Black "Forking_U"]
[Result "0-1"]
[WhiteElo "2026"]
[BlackElo "2222"]
[TimeControl "600+2"]
[EndTime "11:32:26 PDT"]
[Termination "Forking_U won by resignation"]

1. d4 {[%clk 0:10:01.9]} 1... d5 {[%clk 0:09:59]} 2. c4 {[%clk 0:09:59.8]} 2...
c6 {[%clk 0:10:00.2]} 3. Nf3 {[%clk 0:10:00.5]} 3... Nf6 {[%clk 0:10:01.4]} 4.
g3 {[%clk 0:10:00.8]} 4... Bf5 {[%clk 0:09:58.6]} 5. Nc3 {[%clk 0:10:00.6]} 5...
dxc4 {[%clk 0:09:58.3]} 6. Ne5 {[%clk 0:09:43.9]} 6... Nbd7 {[%clk 0:06:04.5]}
7. Nxc4 {[%clk 0:09:43.3]} 7... Nb6 {[%clk 0:05:51.6]} 8. Ne5 {[%clk 0:09:37]}
8... Nfd7 {[%clk 0:05:52.2]} 9. Nf3 {[%clk 0:09:33.8]} 9... e6 {[%clk
0:05:42.4]} 10. Bg2 {[%clk 0:09:33.7]} 10... Bd6 {[%clk 0:05:26]} 11. O-O {[%clk
0:09:33.9]} 11... O-O {[%clk 0:05:26.4]} 12. e4 {[%clk 0:09:33.1]} 12... Bg4
{[%clk 0:05:27.2]} 13. h3 {[%clk 0:09:31.8]} 13... Bxf3 {[%clk 0:05:25.4]} 14.
Bxf3 {[%clk 0:09:33.7]} 14... e5 {[%clk 0:05:24.5]} 15. dxe5 {[%clk 0:08:16.1]}
15... Nxe5 {[%clk 0:05:25]} 16. Bg2 {[%clk 0:08:17.5]} 16... Bc5 {[%clk
0:05:07]} 17. Qh5 {[%clk 0:07:55.6]} 17... Nbc4 {[%clk 0:04:19.1]} 18. b3 {[%clk
0:07:35.4]} 18... g6 {[%clk 0:04:17.9]} 19. Qh6 {[%clk 0:07:29.7]} 19... Qd3
{[%clk 0:03:53.1]} 20. bxc4 {[%clk 0:05:45.8]} 20... Qxc3 {[%clk 0:03:37.2]} 21.
Rb1 {[%clk 0:04:20.8]} 21... Qxg3 {[%clk 0:03:34]} 22. Bf4 {[%clk 0:03:54.5]}
22... Qc3 {[%clk 0:03:05]} 23. Rxb7 {[%clk 0:03:01.3]} 23... Rfb8 {[%clk
0:02:20.6]} 24. Rxb8+ {[%clk 0:01:41.4]} 24... Rxb8 {[%clk 0:02:21.4]} 25. Rd1
{[%clk 0:01:39.7]} 25... Bd4 {[%clk 0:01:05]} 26. Qg5 {[%clk 0:01:23.3]} 26...
f6 {[%clk 0:00:57.3]} 27. Qg3 {[%clk 0:01:04.5]} 27... Qxg3 {[%clk 0:00:35.3]}
28. Bxg3 {[%clk 0:01:06.4]} 28... c5 {[%clk 0:00:36.1]} 29. Kh1 {[%clk
0:01:07.8]} 29... Rb2 {[%clk 0:00:30.4]} 30. f4 {[%clk 0:00:55.1]} 30... Nxc4
{[%clk 0:00:31.3]} 31. Bf3 {[%clk 0:00:36.5]} 31... Nd2 {[%clk 0:00:17.9]} 32.
Bg4 {[%clk 0:00:34]} 32... Nxe4 {[%clk 0:00:17.8]} 33. Bh4 {[%clk 0:00:33.7]}
33... f5 {[%clk 0:00:12.3]} 34. Bf3 {[%clk 0:00:35]} 34... Rxa2 {[%clk
0:00:08.1]} 35. Rb1 {[%clk 0:00:36.1]} 35... Rb2 {[%clk 0:00:06.2]} 36. Rc1
{[%clk 0:00:37.3]} 36... a5 {[%clk 0:00:06.2]} 37. Rc4 {[%clk 0:00:36.3]} 37...
Rb1+ {[%clk 0:00:04.4]} 38. Kg2 {[%clk 0:00:37.1]} 38... Rb2+ {[%clk 0:00:05.1]}
39. Kh1 {[%clk 0:00:38.5]} 39... Rb4 {[%clk 0:00:04.3]} 40. Rc2 {[%clk
0:00:37.2]} 40... a4 {[%clk 0:00:05.4]} 41. Be2 {[%clk 0:00:38.1]} 41... Rb2
{[%clk 0:00:04.1]} 42. Bc4+ {[%clk 0:00:37.8]} 42... Kg7 {[%clk 0:00:04.7]} 43.
Rc1 {[%clk 0:00:39.7]} 43... a3 {[%clk 0:00:04.3]} 44. Ra1 {[%clk 0:00:25.9]}
44... Rb4 {[%clk 0:00:05.3]} 45. Rc1 {[%clk 0:00:26.1]} 45... Rxc4 {[%clk
0:00:04.1]} 46. Rxc4 {[%clk 0:00:27.2]} 46... a2 {[%clk 0:00:05.5]} 47. Ra4
{[%clk 0:00:28.7]} 47... a1=Q+ {[%clk 0:00:06.7]} 48. Rxa1 {[%clk 0:00:30.3]}
48... Bxa1 {[%clk 0:00:08.4]} 0-1

[Event "GrandPrix_29.05"]
[Site "Chess.com"]
[Date "2020.05.29"]
[Round "5"]
[White "Thor736"]
[Black "OhanyanEminChess"]
[Result "1-0"]
[WhiteElo "2028"]
[BlackElo "2070"]
[TimeControl "600+2"]
[EndTime "11:32:26 PDT"]
[Termination "Thor736 won by resignation"]

1. e4 {[%clk 0:09:56.6]} 1... e5 {[%clk 0:10:00.1]} 2. Nf3 {[%clk 0:09:57.3]}
2... Nc6 {[%clk 0:09:55.2]} 3. Bb5 {[%clk 0:09:57.9]} 3... f5 {[%clk 0:09:51.3]}
4. d3 {[%clk 0:09:56]} 4... fxe4 {[%clk 0:09:42.1]} 5. dxe4 {[%clk 0:09:56.4]}
5... Nf6 {[%clk 0:09:43.6]} 6. O-O {[%clk 0:09:57.2]} 6... Bc5 {[%clk
0:09:44.1]} 7. Qd3 {[%clk 0:09:55.8]} 7... d6 {[%clk 0:09:42.5]} 8. Qc4 {[%clk
0:09:48.2]} 8... Bd7 {[%clk 0:07:54.1]} 9. Nc3 {[%clk 0:09:47.4]} 9... Qe7
{[%clk 0:07:15.3]} 10. Nd5 {[%clk 0:09:44.3]} 10... Nxd5 {[%clk 0:07:14.5]} 11.
exd5 {[%clk 0:09:45.2]} 11... Nd4 {[%clk 0:07:13.1]} 12. Nxd4 {[%clk 0:09:46]}
12... Bxd4 {[%clk 0:07:10.3]} 13. a4 {[%clk 0:09:46.5]} 13... a6 {[%clk
0:07:04]} 14. Bxd7+ {[%clk 0:09:47]} 14... Qxd7 {[%clk 0:07:05.9]} 15. Be3
{[%clk 0:09:24.2]} 15... Bxe3 {[%clk 0:06:22.9]} 16. fxe3 {[%clk 0:09:24.2]}
16... O-O-O {[%clk 0:06:24.4]} 17. Rf2 {[%clk 0:09:15.6]} 17... Rdf8 {[%clk
0:04:56.7]} 18. Raf1 {[%clk 0:09:13.5]} 18... Qe7 {[%clk 0:04:51.1]} 19. Qg4+
{[%clk 0:08:35.6]} 19... Kb8 {[%clk 0:04:04.1]} 20. Qe6 {[%clk 0:08:19.6]} 20...
Qd8 {[%clk 0:03:26.8]} 21. Rf5 {[%clk 0:06:55.5]} 21... Rxf5 {[%clk 0:02:42]}
22. Qxf5 {[%clk 0:06:55.4]} 22... Qh4 {[%clk 0:02:01.4]} 23. e4 {[%clk
0:06:51.8]} 23... Qh6 {[%clk 0:01:43.2]} 24. h3 {[%clk 0:06:33]} 24... Qd2
{[%clk 0:01:19]} 25. Qf2 {[%clk 0:05:11.4]} 25... Qb4 {[%clk 0:01:13.5]} 26. Qf7
{[%clk 0:05:12.4]} 26... Qxe4 {[%clk 0:00:53.5]} 27. Qxg7 {[%clk 0:04:59.5]}
27... Rc8 {[%clk 0:00:53.8]} 28. c3 {[%clk 0:04:48.7]} 28... Qxd5 {[%clk
0:00:43.5]} 29. Qxh7 {[%clk 0:04:45.1]} 29... Rg8 {[%clk 0:00:32.1]} 30. Rf2
{[%clk 0:04:43.2]} 30... e4 {[%clk 0:00:25]} 31. Qf7 {[%clk 0:04:05.9]} 31...
Qg5 {[%clk 0:00:14.7]} 32. h4 {[%clk 0:03:34.3]} 32... Qg3 {[%clk 0:00:06.1]}
33. Qf4 {[%clk 0:03:16.3]} 33... Qd3 {[%clk 0:00:06.1]} 34. Rd2 {[%clk
0:03:00.3]} 34... Qb1+ {[%clk 0:00:06.9]} 35. Kh2 {[%clk 0:02:59.5]} 35... Re8
{[%clk 0:00:04.7]} 36. Re2 {[%clk 0:02:49.3]} 36... Qd3 {[%clk 0:00:05]} 37. Re3
{[%clk 0:02:32.3]} 37... Qd5 {[%clk 0:00:06.1]} 38. Qg5 {[%clk 0:02:14.1]} 38...
Qe6 {[%clk 0:00:03.9]} 39. h5 {[%clk 0:01:59.4]} 39... Rg8 {[%clk 0:00:04.5]}
40. Rxe4 {[%clk 0:01:49.5]} 40... Rxg5 {[%clk 0:00:04.3]} 41. Rxe6 {[%clk
0:01:50.5]} 41... Rxh5+ {[%clk 0:00:06.2]} 42. Kg3 {[%clk 0:01:51.2]} 42... Rf5
{[%clk 0:00:03.4]} 43. Re8+ {[%clk 0:01:43.8]} 43... Ka7 {[%clk 0:00:04.5]} 44.
Re2 {[%clk 0:01:43.1]} 44... Kb6 {[%clk 0:00:05.4]} 45. Kh4 {[%clk 0:01:38.1]}
45... Rf4+ {[%clk 0:00:05.8]} 46. g4 {[%clk 0:01:38.8]} 46... Rxa4 {[%clk
0:00:07.5]} 47. Kh5 {[%clk 0:01:38.5]} 47... Ra1 {[%clk 0:00:07.5]} 48. g5
{[%clk 0:01:34.4]} 48... Rh1+ {[%clk 0:00:08.7]} 49. Kg6 {[%clk 0:01:34.8]}
49... Kc6 {[%clk 0:00:09.5]} 50. Rg2 {[%clk 0:01:28.6]} 50... Kd7 {[%clk
0:00:09.5]} 51. Kf7 {[%clk 0:01:28.2]} 51... Rf1+ {[%clk 0:00:10.5]} 52. Kg8
{[%clk 0:01:27.8]} 52... Ke7 {[%clk 0:00:08.2]} 53. g6 {[%clk 0:01:28.1]} 53...
Rf8+ {[%clk 0:00:07.2]} 54. Kh7 {[%clk 0:01:28.6]} 54... Rd8 {[%clk 0:00:03.4]}
55. g7 {[%clk 0:01:29.4]} 55... Ke6 {[%clk 0:00:04.8]} 56. g8=Q+ {[%clk
0:01:21.8]} 56... Rxg8 {[%clk 0:00:05.6]} 57. Kxg8 {[%clk 0:01:20.4]} 57... a5
{[%clk 0:00:07.5]} 58. Rg7 {[%clk 0:01:18.4]} 1-0

[Event "GrandPrix_29.05"]
[Site "Chess.com"]
[Date "2020.05.29"]
[Round "5"]
[White "redblizzard"]
[Black "bernereremit"]
[Result "1/2-1/2"]
[WhiteElo "1943"]
[BlackElo "2154"]
[TimeControl "600+2"]
[EndTime "11:32:28 PDT"]
[Termination "Game drawn by repetition"]

1. e4 {[%clk 0:09:56.2]} 1... c5 {[%clk 0:10:00.3]} 2. Nf3 {[%clk 0:09:56.4]}
2... d6 {[%clk 0:10:01.3]} 3. d4 {[%clk 0:09:51.6]} 3... cxd4 {[%clk 0:10:03.2]}
4. Nxd4 {[%clk 0:09:52.9]} 4... Nf6 {[%clk 0:10:03]} 5. Nc3 {[%clk 0:09:53.9]}
5... a6 {[%clk 0:10:03.9]} 6. h3 {[%clk 0:09:54.5]} 6... e6 {[%clk 0:10:02.6]}
7. g4 {[%clk 0:09:53.9]} 7... Nfd7 {[%clk 0:10:04.1]} 8. Bg2 {[%clk 0:09:54.3]}
8... Be7 {[%clk 0:10:05.5]} 9. O-O {[%clk 0:09:55.3]} 9... O-O {[%clk
0:10:05.2]} 10. Re1 {[%clk 0:09:55.2]} 10... Nc6 {[%clk 0:10:02.7]} 11. Be3
{[%clk 0:09:52.6]} 11... Qc7 {[%clk 0:10:00.5]} 12. Qe2 {[%clk 0:09:36.6]} 12...
Rb8 {[%clk 0:09:18.1]} 13. a4 {[%clk 0:08:48.2]} 13... Na5 {[%clk 0:09:06.4]}
14. Rad1 {[%clk 0:08:25.8]} 14... b6 {[%clk 0:08:45.3]} 15. g5 {[%clk
0:07:13.4]} 15... Bb7 {[%clk 0:08:42.1]} 16. h4 {[%clk 0:07:02.7]} 16... Rfe8
{[%clk 0:08:26.8]} 17. h5 {[%clk 0:06:44.2]} 17... Nc4 {[%clk 0:06:34.4]} 18. g6
{[%clk 0:06:23.9]} 18... Nxe3 {[%clk 0:06:23.9]} 19. Qxe3 {[%clk 0:05:57.5]}
19... Bf6 {[%clk 0:06:11.2]} 20. gxf7+ {[%clk 0:04:46.5]} 20... Kxf7 {[%clk
0:06:11.6]} 21. Ndb5 {[%clk 0:04:17.8]} 21... axb5 {[%clk 0:06:07.1]} 22. Nxb5
{[%clk 0:04:19.7]} 22... Qc5 {[%clk 0:04:57.4]} 23. Nxd6+ {[%clk 0:04:20.3]}
23... Kf8 {[%clk 0:04:54.2]} 24. Nxb7 {[%clk 0:02:59.8]} 24... Rxb7 {[%clk
0:04:48.5]} 25. e5 {[%clk 0:03:00.9]} 25... Rc7 {[%clk 0:04:16.1]} 26. exf6
{[%clk 0:02:48.9]} 26... Nxf6 {[%clk 0:04:17]} 27. Qxc5+ {[%clk 0:02:29.4]}
27... Rxc5 {[%clk 0:04:15.3]} 28. c3 {[%clk 0:02:30.7]} 28... Nxh5 {[%clk
0:04:10]} 29. Rd6 {[%clk 0:02:15.5]} 29... Nf4 {[%clk 0:03:50]} 30. Bf3 {[%clk
0:02:09.8]} 30... Rb8 {[%clk 0:03:30.7]} 31. Re4 {[%clk 0:01:59.7]} 31... Ke7
{[%clk 0:03:19.7]} 32. Rdd4 {[%clk 0:01:39.4]} 32... g5 {[%clk 0:03:19.8]} 33.
Rb4 {[%clk 0:01:25.9]} 33... h5 {[%clk 0:02:39.3]} 34. Rec4 {[%clk 0:01:14]}
34... Rf5 {[%clk 0:02:37.2]} 35. Rc7+ {[%clk 0:01:09.7]} 35... Kf6 {[%clk
0:02:37.6]} 36. Be4 {[%clk 0:01:08.8]} 36... Re5 {[%clk 0:02:17.1]} 37. f3
{[%clk 0:01:02.3]} 37... h4 {[%clk 0:01:55.6]} 38. Rc6 {[%clk 0:00:45.7]} 38...
g4 {[%clk 0:01:38.6]} 39. fxg4 {[%clk 0:00:43.9]} 39... Rg8 {[%clk 0:01:36]} 40.
Bf3 {[%clk 0:00:40.8]} 40... Nh3+ {[%clk 0:01:32]} 41. Kg2 {[%clk 0:00:40.5]}
41... Ng5 {[%clk 0:01:32.9]} 42. Rf4+ {[%clk 0:00:39.2]} 42... Ke7 {[%clk
0:01:29.1]} 43. Rxb6 {[%clk 0:00:39.4]} 43... Re1 {[%clk 0:01:22.4]} 44. Rb7+
{[%clk 0:00:40.1]} 44... Kd6 {[%clk 0:01:22.9]} 45. Rd4+ {[%clk 0:00:38.7]}
45... Ke5 {[%clk 0:01:21.4]} 46. Rb5+ {[%clk 0:00:38.2]} 46... Kf6 {[%clk
0:01:22.6]} 47. Rf4+ {[%clk 0:00:39.2]} 47... Ke7 {[%clk 0:01:23.5]} 48. a5
{[%clk 0:00:26.9]} 48... h3+ {[%clk 0:01:07.5]} 49. Kh2 {[%clk 0:00:16.8]} 49...
Rf1 {[%clk 0:01:04]} 50. Rb7+ {[%clk 0:00:15.4]} 50... Kd6 {[%clk 0:01:04.4]}
51. Rd4+ {[%clk 0:00:16.4]} 51... Ke5 {[%clk 0:01:02.8]} 52. Rb5+ {[%clk
0:00:17.3]} 52... Kf6 {[%clk 0:01:03.7]} 53. Rf4+ {[%clk 0:00:16.8]} 53... Ke7
{[%clk 0:01:00.7]} 54. Rb7+ {[%clk 0:00:17.3]} 54... Kd6 {[%clk 0:01:00.5]} 55.
Rd4+ {[%clk 0:00:17.5]} 55... Ke5 {[%clk 0:01:00]} 56. Rb5+ {[%clk 0:00:17.9]}
56... Kf6 {[%clk 0:01:00.3]} 57. Rf4+ {[%clk 0:00:16.6]} 57... Ke7 {[%clk
0:00:55.7]} 1/2-1/2

[Event "GrandPrix_29.05"]
[Site "Chess.com"]
[Date "2020.05.29"]
[Round "5"]
[White "Khayala13"]
[Black "Arasvard"]
[Result "0-1"]
[WhiteElo "1887"]
[BlackElo "2052"]
[TimeControl "600+2"]
[EndTime "11:32:29 PDT"]
[Termination "Arasvard won on time"]

1. e4 {[%clk 0:10:01.9]} 1... c5 {[%clk 0:10:00.4]} 2. Nf3 {[%clk 0:10:00.1]}
2... d6 {[%clk 0:10:01.2]} 3. d4 {[%clk 0:09:58.7]} 3... cxd4 {[%clk 0:10:02.2]}
4. Nxd4 {[%clk 0:10:00.6]} 4... Nf6 {[%clk 0:10:02.8]} 5. Nc3 {[%clk 0:10:01.8]}
5... a6 {[%clk 0:10:04.4]} 6. Be2 {[%clk 0:10:03.3]} 6... e5 {[%clk 0:10:04.3]}
7. Nb3 {[%clk 0:10:03.3]} 7... Be7 {[%clk 0:10:05.5]} 8. Be3 {[%clk 0:10:02.9]}
8... O-O {[%clk 0:10:05.6]} 9. Nd5 {[%clk 0:09:57.4]} 9... Nxd5 {[%clk 0:10:03]}
10. exd5 {[%clk 0:09:57.9]} 10... f5 {[%clk 0:09:53.4]} 11. f4 {[%clk 0:09:50]}
11... Nd7 {[%clk 0:09:44.5]} 12. O-O {[%clk 0:09:46.9]} 12... g5 {[%clk
0:08:21.5]} 13. fxe5 {[%clk 0:09:27.3]} 13... Nxe5 {[%clk 0:08:17.9]} 14. c4
{[%clk 0:09:19.2]} 14... b6 {[%clk 0:07:56.1]} 15. a4 {[%clk 0:08:53.3]} 15...
a5 {[%clk 0:07:55]} 16. Nd4 {[%clk 0:08:10.5]} 16... f4 {[%clk 0:07:14.1]} 17.
Bd2 {[%clk 0:07:33.5]} 17... Qe8 {[%clk 0:06:20]} 18. Nb5 {[%clk 0:06:43]} 18...
Qg6 {[%clk 0:05:27.6]} 19. b4 {[%clk 0:05:47.2]} 19... axb4 {[%clk 0:05:11.9]}
20. Qb1 {[%clk 0:04:05.4]} 20... Qxb1 {[%clk 0:04:06]} 21. Raxb1 {[%clk
0:04:05.4]} 21... Rxa4 {[%clk 0:03:55.5]} 22. Bxb4 {[%clk 0:04:06]} 22... Bf5
{[%clk 0:03:53.2]} 23. Rb2 {[%clk 0:04:00.2]} 23... Nd3 {[%clk 0:02:49.8]} 24.
Bxd3 {[%clk 0:03:57.5]} 24... Bxd3 {[%clk 0:02:51.7]} 25. Rc1 {[%clk 0:03:52.7]}
25... Rc8 {[%clk 0:02:29.5]} 26. Bxd6 {[%clk 0:02:44]} 26... Bf6 {[%clk
0:02:20.7]} 27. Rd2 {[%clk 0:02:44.8]} 27... Rcxc4 {[%clk 0:01:38.4]} 28. Re1
{[%clk 0:02:09.6]} 28... Bg6 {[%clk 0:01:22.2]} 29. Be5 {[%clk 0:01:38.8]} 29...
Bxe5 {[%clk 0:00:48.4]} 30. Rxe5 {[%clk 0:01:40.7]} 30... Rc5 {[%clk 0:00:49.5]}
31. Nd6 {[%clk 0:00:58.6]} 31... b5 {[%clk 0:00:41.4]} 32. Rxg5 {[%clk
0:00:50.6]} 32... b4 {[%clk 0:00:41.5]} 33. Nb7 {[%clk 0:00:49.5]} 33... Rb5
{[%clk 0:00:24.8]} 34. Nd6 {[%clk 0:00:22.1]} 34... Rc5 {[%clk 0:00:25.7]} 35.
Ne4 {[%clk 0:00:19.8]} 35... Rc1+ {[%clk 0:00:26.1]} 36. Kf2 {[%clk 0:00:20.2]}
36... b3 {[%clk 0:00:25.5]} 37. d6 {[%clk 0:00:16.8]} 37... Rc2 {[%clk
0:00:24.2]} 38. d7 {[%clk 0:00:14.6]} 38... Rd4 {[%clk 0:00:25.1]} 39. Rxc2
{[%clk 0:00:07.7]} 39... bxc2 {[%clk 0:00:25]} 40. Nf6+ {[%clk 0:00:08.7]} 40...
Kf7 {[%clk 0:00:24.2]} 41. Rc5 {[%clk 0:00:07.7]} 41... Kxf6 {[%clk 0:00:23.8]}
42. Rc7 {[%clk 0:00:07.6]} 42... Ke7 {[%clk 0:00:24.2]} 43. h4 {[%clk
0:00:05.4]} 43... Rxd7 {[%clk 0:00:23.8]} 44. Rc5 {[%clk 0:00:05.5]} 44... Kd8
{[%clk 0:00:23.3]} 45. h5 {[%clk 0:00:06.6]} 45... Be4 {[%clk 0:00:23.9]} 0-1

[Event "GrandPrix_29.05"]
[Site "Chess.com"]
[Date "2020.05.29"]
[Round "5"]
[White "GeorgMeier"]
[Black "KJakubowski"]
[Result "1/2-1/2"]
[WhiteElo "2645"]
[BlackElo "2589"]
[TimeControl "600+2"]
[EndTime "11:32:37 PDT"]
[Termination "Game drawn - insufficient material"]

1. Nf3 {[%clk 0:10:01.9]} 1... d5 {[%clk 0:09:59.5]} 2. g3 {[%clk 0:10:03.2]}
2... c6 {[%clk 0:09:55.6]} 3. Bg2 {[%clk 0:10:04.3]} 3... Bg4 {[%clk 0:09:52.6]}
4. h3 {[%clk 0:10:05.8]} 4... Bxf3 {[%clk 0:09:52.6]} 5. Bxf3 {[%clk 0:10:07.7]}
5... e5 {[%clk 0:09:47.9]} 6. d3 {[%clk 0:10:09]} 6... Nf6 {[%clk 0:09:47.9]} 7.
e4 {[%clk 0:10:08.7]} 7... dxe4 {[%clk 0:09:29.3]} 8. dxe4 {[%clk 0:10:10.6]}
8... Qxd1+ {[%clk 0:09:29.6]} 9. Kxd1 {[%clk 0:10:12.5]} 9... Bc5 {[%clk
0:09:25.9]} 10. Ke2 {[%clk 0:10:12.6]} 10... Nbd7 {[%clk 0:09:24.7]} 11. Nd2
{[%clk 0:10:08.6]} 11... a5 {[%clk 0:09:14.9]} 12. a4 {[%clk 0:10:07.6]} 12...
Kd8 {[%clk 0:07:39.3]} 13. Nc4 {[%clk 0:09:37.5]} 13... Kc7 {[%clk 0:07:38.3]}
14. Rd1 {[%clk 0:09:08.2]} 14... Rhe8 {[%clk 0:07:17.7]} 15. Bd2 {[%clk
0:08:55.8]} 15... b6 {[%clk 0:06:10.7]} 16. b3 {[%clk 0:08:11]} 16... h5 {[%clk
0:05:10.5]} 17. h4 {[%clk 0:07:26.2]} 17... g6 {[%clk 0:05:06]} 18. Bg2 {[%clk
0:07:14.4]} 18... Nh7 {[%clk 0:04:34.3]} 19. Bc3 {[%clk 0:06:21.4]} 19... Nhf8
{[%clk 0:04:22.7]} 20. Rd3 {[%clk 0:06:09.3]} 20... Bb4 {[%clk 0:04:05.4]} 21.
Bb2 {[%clk 0:06:04.1]} 21... Nc5 {[%clk 0:04:03.1]} 22. Rdd1 {[%clk 0:05:42.8]}
22... f6 {[%clk 0:03:40.3]} 23. c3 {[%clk 0:05:32.5]} 23... Nxb3 {[%clk
0:03:39.2]} 24. cxb4 {[%clk 0:05:32.4]} 24... Nxa1 {[%clk 0:03:11.1]} 25. Rxa1
{[%clk 0:01:52.6]} 25... axb4 {[%clk 0:03:09.2]} 26. f4 {[%clk 0:01:53.3]} 26...
Nd7 {[%clk 0:02:55.5]} 27. fxe5 {[%clk 0:01:32.7]} 27... Nxe5 {[%clk 0:02:49]}
28. Nxe5 {[%clk 0:01:28.9]} 28... fxe5 {[%clk 0:02:49.7]} 29. Ke3 {[%clk
0:01:11]} 29... b5 {[%clk 0:02:36.2]} 30. axb5 {[%clk 0:01:07.8]} 30... Rxa1
{[%clk 0:02:08.9]} 31. Bxa1 {[%clk 0:01:09.7]} 31... cxb5 {[%clk 0:02:07.5]} 32.
Bf1 {[%clk 0:00:43.7]} 32... Kc6 {[%clk 0:01:51.1]} 33. Bd3 {[%clk 0:00:40.1]}
33... b3 {[%clk 0:01:44.1]} 34. Kd2 {[%clk 0:00:29.1]} 34... b4 {[%clk
0:01:24.9]} 35. Bc4 {[%clk 0:00:18.5]} 35... Rd8+ {[%clk 0:01:13.5]} 36. Kc1
{[%clk 0:00:11.1]} 36... Kc5 {[%clk 0:01:08.5]} 37. Bd5 {[%clk 0:00:10.2]} 37...
Rxd5 {[%clk 0:00:26.3]} 38. exd5 {[%clk 0:00:12.1]} 38... Kxd5 {[%clk
0:00:27.4]} 39. Kd2 {[%clk 0:00:13.7]} 39... Ke4 {[%clk 0:00:27.2]} 40. Ke2
{[%clk 0:00:14.6]} 40... Kf5 {[%clk 0:00:26.2]} 41. Bb2 {[%clk 0:00:11.7]} 41...
e4 {[%clk 0:00:24.8]} 42. Kf2 {[%clk 0:00:09.4]} 42... g5 {[%clk 0:00:18.5]} 43.
hxg5 {[%clk 0:00:09.4]} 43... Kxg5 {[%clk 0:00:19.4]} 44. Ke3 {[%clk 0:00:10.3]}
44... Kg4 {[%clk 0:00:20.1]} 45. Be5 {[%clk 0:00:10.6]} 45... b2 {[%clk
0:00:20]} 46. Bxb2 {[%clk 0:00:11.5]} 46... Kxg3 {[%clk 0:00:20.9]} 47. Kxe4
{[%clk 0:00:13.1]} 47... h4 {[%clk 0:00:20.9]} 48. Be5+ {[%clk 0:00:14.3]} 48...
Kg2 {[%clk 0:00:21.4]} 49. Kd3 {[%clk 0:00:16.2]} 49... h3 {[%clk 0:00:21.8]}
50. Kc4 {[%clk 0:00:17.3]} 50... h2 {[%clk 0:00:21.7]} 51. Bxh2 {[%clk
0:00:18.7]} 51... Kxh2 {[%clk 0:00:22.8]} 52. Kxb4 {[%clk 0:00:20]} 1/2-1/2

[Event "GrandPrix_29.05"]
[Site "Chess.com"]
[Date "2020.05.29"]
[Round "5"]
[White "Alex_Krayz"]
[Black "ValeriyGrinev"]
[Result "0-1"]
[WhiteElo "2117"]
[BlackElo "2070"]
[TimeControl "600+2"]
[EndTime "11:32:37 PDT"]
[Termination "ValeriyGrinev won on time"]

1. e4 {[%clk 0:10:01.9]} 1... c5 {[%clk 0:10:00.2]} 2. Nf3 {[%clk 0:10:01.8]}
2... e6 {[%clk 0:10:00.7]} 3. c3 {[%clk 0:10:01.6]} 3... Nf6 {[%clk 0:10:00.9]}
4. e5 {[%clk 0:10:02.2]} 4... Nd5 {[%clk 0:10:02.1]} 5. d4 {[%clk 0:10:03]} 5...
cxd4 {[%clk 0:10:03.4]} 6. cxd4 {[%clk 0:10:03.5]} 6... d6 {[%clk 0:10:04.7]} 7.
Bc4 {[%clk 0:10:03.5]} 7... Be7 {[%clk 0:10:05.9]} 8. O-O {[%clk 0:10:02.6]}
8... O-O {[%clk 0:10:07.3]} 9. Qe2 {[%clk 0:10:01.7]} 9... b6 {[%clk 0:10:07.1]}
10. Bd2 {[%clk 0:09:58]} 10... Bb7 {[%clk 0:10:06.1]} 11. Nc3 {[%clk 0:09:55.5]}
11... Nxc3 {[%clk 0:10:06.6]} 12. Bxc3 {[%clk 0:09:55.4]} 12... Nd7 {[%clk
0:10:06.1]} 13. Rad1 {[%clk 0:09:33.5]} 13... dxe5 {[%clk 0:09:40.1]} 14. dxe5
{[%clk 0:09:31.1]} 14... Qc7 {[%clk 0:09:41.5]} 15. Bb3 {[%clk 0:09:15.8]} 15...
Rfd8 {[%clk 0:09:04.6]} 16. Rfe1 {[%clk 0:09:11.4]} 16... Nc5 {[%clk 0:08:56.6]}
17. Bc2 {[%clk 0:09:08.8]} 17... Rxd1 {[%clk 0:08:53.7]} 18. Rxd1 {[%clk
0:09:05.4]} 18... Rd8 {[%clk 0:08:54.8]} 19. Rxd8+ {[%clk 0:08:27.3]} 19... Qxd8
{[%clk 0:08:56.7]} 20. b4 {[%clk 0:08:20.4]} 20... Nd7 {[%clk 0:06:57]} 21. Qd3
{[%clk 0:08:11.6]} 21... g6 {[%clk 0:06:52]} 22. h4 {[%clk 0:08:10.5]} 22...
Bxf3 {[%clk 0:06:39.2]} 23. Qxf3 {[%clk 0:08:08.9]} 23... Bxh4 {[%clk
0:06:37.9]} 24. g3 {[%clk 0:08:06.7]} 24... Be7 {[%clk 0:06:34.9]} 25. Qb7
{[%clk 0:08:00.9]} 25... a5 {[%clk 0:06:14.1]} 26. a3 {[%clk 0:07:17.6]} 26...
axb4 {[%clk 0:06:12.3]} 27. axb4 {[%clk 0:07:16.3]} 27... Nf8 {[%clk 0:06:00.7]}
28. Be4 {[%clk 0:07:00]} 28... Qd1+ {[%clk 0:05:47.9]} 29. Kg2 {[%clk
0:06:57.5]} 29... Bd8 {[%clk 0:05:49.8]} 30. b5 {[%clk 0:06:35.9]} 30... h5
{[%clk 0:05:41.4]} 31. Bb4 {[%clk 0:06:23.9]} 31... h4 {[%clk 0:05:32.6]} 32.
Qa8 {[%clk 0:03:36.1]} 32... hxg3 {[%clk 0:05:24.2]} 33. fxg3 {[%clk 0:03:07.7]}
33... Qe2+ {[%clk 0:05:11.9]} 34. Kh3 {[%clk 0:02:59.8]} 34... Qh5+ {[%clk
0:04:07.2]} 35. Kg2 {[%clk 0:02:58.6]} 35... Qg5 {[%clk 0:04:07.9]} 36. Bd6
{[%clk 0:02:41.7]} 36... Be7 {[%clk 0:04:01.4]} 37. Qc6 {[%clk 0:02:04.1]} 37...
Qd2+ {[%clk 0:03:41.2]} 38. Kf1 {[%clk 0:01:29.2]} 38... Bxd6 {[%clk 0:02:34.6]}
39. exd6 {[%clk 0:01:27.2]} 39... Qd1+ {[%clk 0:02:20.6]} 40. Kg2 {[%clk
0:01:18.3]} 40... Qe2+ {[%clk 0:02:05.2]} 41. Kh1 {[%clk 0:01:13.7]} 41... Qe1+
{[%clk 0:01:46.1]} 42. Kh2 {[%clk 0:01:11.5]} 42... Qf2+ {[%clk 0:01:41.5]} 43.
Bg2 {[%clk 0:01:10.6]} 43... Qd4 {[%clk 0:01:36.9]} 44. Qc7 {[%clk 0:00:51.3]}
44... g5 {[%clk 0:01:28.6]} 45. Qe7 {[%clk 0:00:43.8]} 45... g4 {[%clk
0:01:12.6]} 46. Qg5+ {[%clk 0:00:40.8]} 46... Kh7 {[%clk 0:01:07.6]} 47. Qe7
{[%clk 0:00:14.5]} 47... Kg7 {[%clk 0:01:05.2]} 48. Bc6 {[%clk 0:00:13.9]} 48...
Ng6 {[%clk 0:00:53.5]} 49. Qd8 {[%clk 0:00:07.3]} 49... Qd2+ {[%clk 0:00:47]}
50. Kg1 {[%clk 0:00:06]} 50... Ne5 {[%clk 0:00:42.8]} 51. d7 {[%clk 0:00:04.5]}
51... Nf3+ {[%clk 0:00:42.9]} 52. Bxf3 {[%clk 0:00:02.7]} 52... gxf3 {[%clk
0:00:44.8]} 0-1